bitfinex/quotes_BTCUSD_20241211
["timestamp","ask_amount","ask_price","bid_price","bid_amount"]
[1733956158883,0.6742263,101450.0,101440.0,0.36767418]
[1733956159584,0.6742263,101450.0,101440.0,0.29434009]
[1733956160237,0.5394722,101450.0,101440.0,0.36767418]
[1733956160893,2e-07,101450.0,101440.0,0.51850827]
[1733956161123,2e-07,101450.0,101440.0,0.54863051]
[1733956161339,2e-07,101450.0,101440.0,0.51850827]
[1733956161976,2e-07,101450.0,101440.0,0.51650827]
[1733956162202,0.0030002,101450.0,101440.0,0.51750827]
[1733956162406,2e-07,101450.0,101440.0,0.51750827]
[1733956162867,2e-07,101450.0,101440.0,0.56620827]
[1733956164547,0.0001724,101450.0,101440.0,0.56620827]
[1733956166311,4e-07,101450.0,101440.0,0.56620827]
[1733956166957,4e-07,101450.0,101440.0,0.57761356]
[1733956168244,4e-07,101450.0,101440.0,0.665688]
[1733956168430,0.01130123,101470.0,101450.0,0.15]
[1733956168667,0.10030845,101470.0,101460.0,0.29666818]
[1733956168872,0.10030845,101470.0,101460.0,0.36566018]
[1733956169294,0.10020845,101470.0,101460.0,0.36566018]
[1733956169731,0.1007632,101470.0,101460.0,0.218992]
[1733956169977,0.1016632,101470.0,101460.0,0.226992]
[1733956170194,0.1016632,101470.0,101460.0,0.37366018]
[1733956171173,0.00155475,101470.0,101460.0,0.37366018]
[1733956171438,7.5e-07,101470.0,101460.0,0.99814127]
[1733956171657,7.5e-07,101470.0,101460.0,0.39265889]
[1733956171864,7.5e-07,101470.0,101460.0,0.79361149]
[1733956172250,0.0001722,101480.0,101470.0,0.218985]
[1733956172451,0.0001722,101480.0,101470.0,0.36565318]
[1733956172452,0.00028151,101480.0,101470.0,0.36565318]
[1733956173668,0.00528151,101480.0,101470.0,0.36565318]
[1733956174614,0.00828151,101480.0,101470.0,0.36565318]
[1733956180815,0.00828151,101480.0,101470.0,0.51489318]
[1733956180816,5.1e-07,101480.0,101470.0,0.51489318]
[1733956181025,5.1e-07,101480.0,101470.0,0.36565318]
[1733956182563,5.1e-07,101480.0,101470.0,0.218985]
[1733956182743,5.1e-07,101480.0,101470.0,0.36565318]
[1733956184505,5.1e-07,101480.0,101470.0,0.14630658]
[1733956184710,5.1e-07,101480.0,101470.0,0.14729188]
[1733956184961,5.1e-07,101480.0,101470.0,0.21627688]
[1733956185191,5.1e-07,101480.0,101470.0,0.21529158]
[1733956186897,5.1e-07,101480.0,101470.0,0.36529158]
[1733956189321,0.00017251,101480.0,101470.0,0.36529158]
[1733956190410,0.00017251,101480.0,101470.0,0.39541382]
[1733956191896,0.00017251,101480.0,101470.0,0.36529158]
[1733956196407,0.12347251,101480.0,101470.0,0.218985]
[1733956196627,0.12347251,101480.0,101470.0,0.29231909]
[1733956197121,0.12347251,101480.0,101470.0,0.36565318]
[1733956197328,0.12347251,101480.0,101470.0,0.29231909]
[1733956200980,0.12347251,101480.0,101470.0,0.29240509]
[1733956201189,0.12347251,101480.0,101470.0,0.36573918]
[1733956201393,0.12347251,101480.0,101470.0,0.29240509]
[1733956201812,0.12347251,101480.0,101470.0,0.36573918]
[1733956206843,0.12347251,101480.0,101470.0,0.39586142]
[1733956207049,0.12347251,101480.0,101470.0,0.36573918]
[1733956220670,0.12337251,101480.0,101470.0,0.36573918]
[1733956221333,0.12327251,101480.0,101470.0,0.36573918]
[1733956221543,0.5393,101490.0,101480.0,0.218979]
[1733956221775,0.5393,101490.0,101480.0,0.36564718]
[1733956221776,0.5392,101490.0,101480.0,0.36564718]
[1733956221994,0.5392,101490.0,101480.0,0.45396258]
[1733956222467,0.5391,101490.0,101480.0,0.45396258]
[1733956222740,0.5391,101490.0,101480.0,0.76306648]
[1733956223221,0.539,101490.0,101480.0,0.58643568]
[1733956223453,0.09950731,101510.0,101500.0,0.15]
[1733956223665,0.11134747,101510.0,101500.0,0.29229909]
[1733956224320,0.19394747,101510.0,101500.0,0.29229909]
[1733956224742,0.19394747,101510.0,101500.0,0.29929909]
[1733956224971,0.19384747,101510.0,101500.0,0.29929909]
[1733956225443,0.19374747,101510.0,101500.0,0.29929909]
[1733956227221,0.19374747,101510.0,101500.0,0.37263318]
[1733956233622,0.19374747,101510.0,101500.0,0.15366818]
[1733956234471,0.19374747,101510.0,101500.0,0.22263318]
[1733956235306,0.19391947,101510.0,101500.0,0.22263318]
[1733956236995,0.19391947,101510.0,101500.0,0.37263318]
[1733956243004,0.21691947,101510.0,101500.0,0.225965]
[1733956243235,0.21691947,101510.0,101500.0,0.29929909]
[1733956244527,0.26581947,101510.0,101500.0,0.29929909]
[1733956246230,0.26581947,101510.0,101500.0,0.14929909]
[1733956246445,0.26581947,101510.0,101500.0,0.29938509]
[1733956248224,0.35415392,101510.0,101500.0,0.29938509]
[1733956248468,0.39832114,101510.0,101500.0,0.29938509]
[1733956248687,0.48665559,101510.0,101500.0,0.29938509]
[1733956249119,0.35415392,101510.0,101500.0,0.076051]
[1733956249346,0.88416062,101510.0,101500.0,0.007086]
[1733956249562,0.79582617,101510.0,101500.0,0.007086]
[1733956250665,0.6633245,101510.0,101500.0,0.007086]
[1733956251335,0.8603485,101510.0,101500.0,0.007086]
[1733956251765,0.8603485,101510.0,101500.0,0.00261772]
[1733956251996,0.301683,101480.0,101470.0,8.6e-05]
[1733956252252,0.301683,101480.0,101470.0,0.00019531]
[1733956252253,0.84371238,101480.0,101470.0,0.00019531]
[1733956252544,0.77282373,101480.0,101470.0,0.00019531]
[1733956252793,0.86595784,101480.0,101470.0,0.00019531]
[1733956253067,0.60089145,101480.0,101470.0,0.00019531]
[1733956253321,0.451702,101470.0,101460.0,8.6e-05]
[1733956253538,0.81678009,101470.0,101460.0,8.6e-05]
[1733956253997,0.81677738,101470.0,101460.0,8.6e-05]
[1733956255254,1.03716779,101470.0,101460.0,8.6e-05]
[1733956255465,1.08606779,101470.0,101460.0,8.6e-05]
[1733956255687,1.08606779,101470.0,101460.0,0.002086]
[1733956255901,1.08606779,101470.0,101460.0,0.005086]
[1733956256360,0.99751417,101470.0,101460.0,0.005086]
[1733956257209,1.12960984,101470.0,101460.0,0.005086]
[1733956258284,1.2285052,101470.0,101460.0,0.005086]
[1733956259164,1.0078939,101470.0,101460.0,0.005086]
[1733956259373,1.22795681,101470.0,101460.0,0.005086]
[1733956261325,1.00789389,101470.0,101460.0,0.005086]
[1733956262421,1.00750833,101470.0,101460.0,0.005086]
[1733956264519,0.83162936,101470.0,101460.0,0.005086]
[1733956264938,1.31257365,101470.0,101460.0,0.005086]
[1733956265148,1.31257365,101470.0,101430.0,0.219007]
[1733956265149,0.197141,101450.0,101430.0,0.219007]
[1733956265353,0.197141,101450.0,101430.0,0.29234109]
[1733956265354,0.20490845,101440.0,101430.0,0.29234109]
[1733956265561,0.023,101430.0,101420.0,0.1381171]
[1733956265767,0.20490845,101430.0,101420.0,0.21145119]
[1733956266608,0.25460845,101430.0,101420.0,0.00064085]
[1733956266820,0.94476845,101430.0,101420.0,0.00064085]
[1733956267235,1.29196445,101430.0,101400.0,0.1381471]
[1733956267444,0.20000845,101420.0,101410.0,0.069026]
[1733956269107,0.20000845,101420.0,101410.0,0.070026]
[1733956270200,0.20000845,101420.0,101410.0,0.001]
[1733956270410,0.39720745,101420.0,101410.0,0.001]
[1733956272385,0.89018745,101420.0,101410.0,0.001]
[1733956273458,1.04018745,101420.0,101410.0,0.001]
[1733956274073,1.04018745,101420.0,101410.0,0.14336009]
[1733956274074,0.66998845,101420.0,101410.0,0.14336009]
[1733956274656,0.66998845,101420.0,101410.0,0.14236009]
[1733956275226,0.66998845,101420.0,101410.0,0.14736009]
[1733956275433,0.69398845,101420.0,101410.0,0.15436009]
[1733956276221,0.69398845,101420.0,101410.0,0.081026]
[1733956276477,0.69398845,101420.0,101410.0,0.15436009]
[1733956277209,0.69398845,101420.0,101410.0,0.081026]
[1733956277437,0.69398845,101420.0,101410.0,0.15436009]
[1733956278588,0.69398845,101420.0,101410.0,0.081026]
[1733956280093,0.69398845,101420.0,101410.0,0.0811121]
[1733956280297,0.69416065,101420.0,101410.0,0.0811121]
[1733956282763,0.023,101410.0,101400.0,0.36139109]
[1733956283072,0.12330845,101410.0,101400.0,0.36139109]
[1733956283418,0.12330845,101410.0,101400.0,0.36183249]
[1733956283935,0.12330845,101410.0,101400.0,0.36283249]
[1733956284389,0.14268405,101410.0,101400.0,0.36283249]
[1733956284605,0.12430845,101410.0,101400.0,0.36283249]
[1733956287003,0.66360845,101410.0,101400.0,0.36283249]
[1733956287612,0.66360845,101410.0,101400.0,0.43616658]
[1733956288203,0.66360845,101410.0,101400.0,0.28616658]
[1733956289038,0.67442861,101410.0,101400.0,0.28616658]
[1733956291337,0.67442861,101410.0,101400.0,0.28625268]
[1733956293948,0.65142861,101410.0,101400.0,0.36145268]
[1733956294175,0.65142861,101410.0,101400.0,0.58478677]
[1733956294394,0.5403,101410.0,101400.0,0.61490901]
[1733956294599,0.5403,101410.0,101400.0,0.66440901]
[1733956294806,0.4931522,101420.0,101410.0,0.209165]
[1733956295029,0.4931522,101420.0,101410.0,0.48053318]
[1733956295237,0.4931522,101420.0,101410.0,0.48097458]
[1733956295872,0.4931522,101420.0,101410.0,0.55430867]
[1733956296526,0.4931522,101420.0,101410.0,0.48097458]
[1733956296977,0.4941522,101420.0,101410.0,0.48097458]
[1733956301652,0.4940522,101420.0,101410.0,0.48097458]
[1733956302385,0.4939522,101420.0,101410.0,0.3343064]
[1733956302617,0.4939522,101420.0,101410.0,0.48106068]
[1733956303071,0.4939522,101420.0,101410.0,0.2627286]
[1733956304575,0.4939522,101420.0,101410.0,0.3218936]
[1733956305205,0.4939522,101420.0,101410.0,0.4718936]
[1733956308924,0.4939522,101420.0,101410.0,0.32522542]
[1733956309142,0.4939522,101420.0,101410.0,0.4718936]
[1733956316205,0.4939522,101420.0,101410.0,0.40586068]
[1733956320042,0.4939522,101420.0,101410.0,0.35636068]
[1733956324353,0.5761522,101420.0,101410.0,0.35636068]
[1733956329059,0.5761522,101420.0,101410.0,0.2096925]
[1733956329261,0.5761522,101420.0,101410.0,0.35636068]
[1733956335961,0.5751522,101420.0,101410.0,0.35636068]
[1733956336169,0.5821522,101420.0,101410.0,0.35736068]
[1733956336388,0.5821522,101420.0,101410.0,0.35936068]
[1733956337008,0.5821522,101420.0,101410.0,0.35736068]
[1733956337219,0.5851522,101420.0,101410.0,0.35736068]
[1733956340253,0.5851522,101420.0,101410.0,0.14766818]
[1733956340658,0.5851522,101420.0,101410.0,0.20683318]
[1733956342341,0.5851522,101420.0,101410.0,0.35683318]
[1733956343129,0.5851522,101420.0,101410.0,0.28349909]
[1733956343864,0.68546065,101420.0,101410.0,0.28349909]
[1733956344041,0.68546065,101420.0,101410.0,0.210165]
[1733956344253,0.7739306,101420.0,101410.0,0.28349909]
[1733956344406,0.68546065,101420.0,101410.0,0.07333409]
[1733956344836,0.68546065,101420.0,101410.0,0.13249909]
[1733956346921,0.68546065,101420.0,101410.0,0.13258519]
[1733956348073,0.68546065,101420.0,101410.0,0.0592511]
[1733956348244,0.77396435,101420.0,101410.0,0.13258519]
[1733956348620,0.77396435,101420.0,101410.0,0.0592511]
[1733956348867,0.82346435,101420.0,101410.0,0.0592511]
[1733956349431,0.95621991,101420.0,101410.0,0.0592511]
[1733956350302,1.49551991,101420.0,101410.0,0.0592511]
[1733956352468,1.49551991,101420.0,101410.0,0.13258519]
[1733956352883,1.50621465,101420.0,101410.0,0.13258519]
[1733956353282,1.50621465,101420.0,101410.0,0.0592511]
[1733956353283,1.52921465,101420.0,101410.0,0.0592511]
[1733956353615,1.52921465,101420.0,101410.0,8.61e-05]
[1733956354229,1.70622206,101420.0,101410.0,8.61e-05]
[1733956354389,2.03617662,101420.0,101410.0,8.61e-05]
[1733956354593,1.72641365,101420.0,101410.0,8.61e-05]
[1733956354796,1.98192477,101420.0,101410.0,8.61e-05]
[1733956355012,1.44262477,101420.0,101410.0,8.61e-05]
[1733956355224,1.44262477,101420.0,101410.0,0.0010861]
[1733956355421,1.17711365,101420.0,101410.0,0.0010861]
[1733956356328,1.17711365,101420.0,101410.0,8.61e-05]
[1733956356552,1.35377055,101420.0,101410.0,8.61e-05]
[1733956356727,1.17911365,101420.0,101410.0,0.0070861]
[1733956356959,1.18011365,101420.0,101410.0,0.0070861]
[1733956357163,1.66398643,101420.0,101410.0,0.0070861]
[1733956357598,1.67103369,101420.0,101410.0,0.0070861]
[1733956357823,0.59730618,101400.0,101390.0,8.61e-05]
[1733956358037,0.197258,101390.0,101380.0,8.61e-05]
[1733956358237,1.71960124,101390.0,101380.0,8.61e-05]
[1733956358445,1.64662179,101390.0,101380.0,8.61e-05]
[1733956358649,1.5143228,101390.0,101380.0,8.61e-05]
[1733956359252,1.3643228,101390.0,101380.0,8.61e-05]
[1733956359487,1.54333615,101390.0,101380.0,8.61e-05]
[1733956359722,1.54433615,101390.0,101380.0,0.0110861]
[1733956360467,1.41176431,101390.0,101380.0,0.0110861]
[1733956360679,1.54433615,101390.0,101380.0,0.0110861]
[1733956361208,1.56140929,101390.0,101380.0,0.0110861]
[1733956361417,1.69351184,101390.0,101380.0,0.0110861]
[1733956362064,1.82843222,101390.0,101380.0,0.0110861]
[1733956362397,1.78158073,101390.0,101380.0,0.0110861]
[1733956363500,1.78158073,101390.0,101370.0,0.0154645]
[1733956363501,0.450677,101380.0,101370.0,0.0154645]
[1733956363705,1.13176496,101380.0,101370.0,0.0154645]
[1733956363882,1.17856496,101380.0,101370.0,0.0154645]
[1733956364758,1.17856496,101380.0,101370.0,0.0164645]
[1733956364971,1.17856496,101380.0,101370.0,0.01663269]
[1733956365191,1.18056496,101380.0,101370.0,0.01563269]
[1733956365419,1.18056496,101380.0,101370.0,0.01963269]
[1733956365420,1.17856496,101380.0,101370.0,0.01963269]
[1733956365862,1.17956496,101380.0,101370.0,0.01963269]
[1733956366085,1.25289905,101380.0,101370.0,0.01963269]
[1733956366303,1.17956496,101380.0,101370.0,0.01963269]
[1733956366724,1.48790251,101380.0,101370.0,0.01963269]
[1733956366930,1.31166751,101380.0,101370.0,0.01963269]
[1733956367352,1.17956496,101380.0,101370.0,0.01963269]
[1733956368530,0.72128845,101380.0,101370.0,0.24296678]
[1733956368803,0.72128845,101380.0,101370.0,0.30215578]
[1733956368804,0.59408845,101380.0,101370.0,0.30215578]
[1733956369537,0.59308845,101380.0,101370.0,0.30215578]
[1733956369784,0.59508845,101380.0,101370.0,0.35075578]
[1733956370543,0.59508845,101380.0,101370.0,0.34675578]
[1733956371274,0.59508845,101380.0,101370.0,0.38539541]
[1733956371813,0.49478,101380.0,101370.0,0.38539541]
[1733956376935,0.67128845,101380.0,101370.0,0.22482169]
[1733956377420,0.49478,101380.0,101370.0,0.33679541]
[1733956377830,0.49478,101380.0,101370.0,0.11197372]
[1733956378033,0.49478,101380.0,101370.0,0.17116272]
[1733956378263,0.49478,101380.0,101370.0,0.17214908]
[1733956378681,0.49478,101380.0,101370.0,0.17116272]
[1733956379218,0.49478,101380.0,101370.0,0.25146272]
[1733956379421,0.49478,101380.0,101370.0,0.30086272]
[1733956379841,0.49478,101380.0,101370.0,0.45086272]
[1733956380619,0.49478,101380.0,101370.0,0.45094882]
[1733956381698,0.4949522,101380.0,101370.0,0.45094882]
[1733956384391,0.4949522,101380.0,101370.0,0.3389751]
[1733956384569,0.4949522,101380.0,101370.0,0.45094882]
[1733956385212,0.4949522,101380.0,101370.0,0.56292254]
[1733956385413,0.4949522,101380.0,101370.0,0.45094882]
[1733956387241,0.4850522,101380.0,101370.0,0.3389751]
[1733956387463,0.4850522,101380.0,101370.0,0.45094882]
[1733956388489,0.4850522,101380.0,101370.0,0.56292254]
[1733956388694,0.4653242,101380.0,101370.0,0.56292254]
[1733956390435,0.4703242,101380.0,101370.0,0.56292254]
[1733956390965,0.3716842,101380.0,101370.0,0.81323099]
[1733956391166,0.2730442,101380.0,101370.0,1.77562346]
[1733956391322,0.2730442,101380.0,101370.0,1.77198987]
[1733956392160,0.2138602,101380.0,101370.0,1.77198987]
[1733956392537,0.1744042,101380.0,101370.0,1.77198987]
[1733956393133,0.0757642,101380.0,101370.0,1.77198987]
[1733956393986,0.0560362,101380.0,101370.0,1.77198987]
[1733956394200,0.0165802,101380.0,101370.0,1.77198987]
[1733956394359,2e-07,101380.0,101370.0,1.77198987]
[1733956394556,2e-07,101380.0,101370.0,0.95959687]
[1733956395145,2e-07,101380.0,101370.0,0.96989146]
[1733956395348,2e-07,101380.0,101370.0,0.67927264]
[1733956395574,2e-07,101380.0,101370.0,0.73846164]
[1733956397129,2e-07,101380.0,101370.0,0.76525232]
[1733956397618,2e-07,101380.0,101370.0,0.73846164]
[1733956398371,2e-07,101380.0,101370.0,0.81376164]
[1733956400060,2e-07,101380.0,101370.0,0.84055232]
[1733956400267,2e-07,101380.0,101370.0,0.81376164]
[1733956404827,2e-07,101380.0,101370.0,0.59344779]
[1733956405242,2e-07,101380.0,101370.0,0.68162412]
[1733956407350,2e-07,101380.0,101370.0,0.59344779]
[1733956407553,2e-07,101380.0,101370.0,0.68162412]
[1733956409785,2e-07,101380.0,101370.0,0.68160196]
[1733956410699,2e-07,101380.0,101370.0,0.65450196]
[1733956410970,2e-07,101380.0,101370.0,0.78673322]
[1733956411460,2e-07,101380.0,101370.0,1.28673322]
[1733956412453,2e-07,101380.0,101370.0,1.46304157]
[1733956412738,2e-07,101380.0,101370.0,1.28673322]
[1733956413586,2e-07,101380.0,101370.0,1.46304157]
[1733956413793,2e-07,101380.0,101370.0,1.28673322]
[1733956414578,2e-07,101380.0,101370.0,1.46304157]
[1733956414851,2e-07,101380.0,101370.0,1.41484157]
[1733956418636,2e-07,101380.0,101370.0,1.63522701]
[1733956419984,2e-07,101380.0,101370.0,1.67467101]
[1733956422468,2e-07,101380.0,101370.0,1.58651684]
[1733956423202,2e-07,101380.0,101370.0,1.57622225]
[1733956424509,2e-07,101380.0,101370.0,1.66455118]
[1733956424712,2e-07,101380.0,101370.0,1.44416574]
[1733956424923,2e-07,101380.0,101370.0,1.26785739]
[1733956425132,2e-07,101380.0,101370.0,1.44416574]
[1733956425568,2e-07,101380.0,101370.0,1.66455118]
[1733956427736,2e-07,101380.0,101370.0,1.67514387]
[1733956429595,2e-07,101380.0,101370.0,1.58681494]
[1733956430868,0.0827002,101380.0,101370.0,1.58681494]
[1733956431120,0.0827002,101380.0,101370.0,1.80712879]
[1733956431626,0.0827002,101380.0,101370.0,2.88738553]
[1733956431878,0.0827002,101380.0,101370.0,2.69032953]
[1733956432144,0.0827002,101380.0,101370.0,2.47273253]
[1733956432350,0.0827002,101380.0,101370.0,2.43276153]
[1733956433332,0.0827002,101380.0,101370.0,2.25645318]
[1733956434330,0.0827002,101380.0,101370.0,2.23041218]
[1733956434530,0.0827002,101380.0,101370.0,2.27562744]
[1733956435162,0.0827002,101380.0,101370.0,2.16052249]
[1733956435363,0.0827002,101380.0,101370.0,2.09366168]
[1733956436152,0.0827002,101380.0,101370.0,0.87892216]
[1733956436355,0.0827002,101380.0,101370.0,1.32517356]
[1733956436530,0.0827002,101380.0,101370.0,1.19241021]
[1733956436729,0.0827002,101380.0,101370.0,1.04553431]
[1733956436934,0.0827002,101380.0,101370.0,1.15296621]
[1733956437133,0.0827002,101380.0,101370.0,0.97585441]
[1733956441533,0.0827002,101380.0,101370.0,0.84299802]
[1733956441737,0.0827002,101380.0,101370.0,0.69612212]
[1733956441938,0.1298002,101380.0,101370.0,0.84299802]
[1733956442348,0.1298002,101380.0,101370.0,0.75442118]
[1733956447602,0.1298002,101380.0,101370.0,0.60754528]
[1733956447821,0.1298002,101380.0,101370.0,0.75442118]
[1733956450465,0.1298002,101380.0,101370.0,0.68098323]
[1733956452324,0.1298002,101380.0,101370.0,0.60754528]
[1733956452473,0.25310865,101380.0,101370.0,0.68098323]
[1733956452677,0.25310865,101380.0,101370.0,0.78271305]
[1733956452910,0.3414052,101380.0,101370.0,0.78271305]
[1733956453115,0.47385003,101380.0,101370.0,0.78271305]
[1733956453552,0.47385003,101380.0,101370.0,0.7092751]
[1733956453755,0.47385003,101380.0,101370.0,0.78271305]
[1733956454336,0.3414052,101380.0,101370.0,0.78271305]
[1733956454926,0.5396822,101380.0,101370.0,0.6500861]
[1733956455356,0.5396822,101380.0,101370.0,0.72352405]
[1733956455628,0.53956103,101380.0,101370.0,0.72352405]
[1733956456116,0.53956103,101380.0,101370.0,0.6500861]
[1733956457337,0.45138565,101380.0,101370.0,0.5000861]
[1733956457589,0.53956103,101380.0,101370.0,0.5000861]
[1733956458354,0.6718241,101380.0,101370.0,0.5000861]
[1733956459107,0.84796288,101380.0,101370.0,0.5000861]
[1733956459365,0.67170633,101380.0,101370.0,0.5000861]
[1733956462867,0.67170633,101380.0,101370.0,0.4219861]
[1733956463094,0.98327256,101380.0,101370.0,0.3438861]
[1733956463327,0.98327256,101380.0,101370.0,0.23191471]
[1733956463566,1.20284011,101380.0,101370.0,0.23191471]
[1733956464237,1.20184011,101380.0,101370.0,0.23591471]
[1733956464544,1.20284011,101380.0,101370.0,0.23691471]
[1733956465234,0.98283323,101380.0,101370.0,0.23691471]
[1733956465469,0.90939528,101380.0,101370.0,0.23691471]
[1733956465927,0.98283323,101380.0,101370.0,0.23691471]
[1733956466149,0.90939528,101380.0,101370.0,0.23691471]
[1733956466592,0.46902592,101380.0,101370.0,0.23691471]
[1733956466817,0.38110865,101380.0,101370.0,0.28623871]
[1733956467788,0.40410865,101380.0,101370.0,0.28623871]
[1733956471938,0.25410865,101380.0,101370.0,0.28623871]
[1733956472187,0.40410865,101380.0,101370.0,0.28623871]
[1733956472408,0.38910865,101380.0,101370.0,0.28623871]
[1733956472618,0.38910865,101380.0,101370.0,0.28632471]
[1733956473713,0.41848898,101380.0,101370.0,0.28632471]
[1733956474552,0.50643918,101380.0,101370.0,0.28632471]
[1733956475489,0.63836449,101380.0,101370.0,0.28632471]
[1733956475722,0.47705885,101380.0,101370.0,0.28632471]
[1733956475949,0.50644665,101380.0,101370.0,0.28632471]
[1733956476414,0.63837196,101380.0,101370.0,0.28632471]
[1733956476637,0.47705885,101380.0,101370.0,0.28632471]
[1733956476868,0.50645208,101380.0,101370.0,0.28632471]
[1733956477361,0.50649142,101380.0,101370.0,0.28632471]
[1733956478550,0.63847574,101380.0,101370.0,0.28632471]
[1733956478768,0.60908251,101380.0,101370.0,0.28632471]
[1733956478994,0.30409819,101380.0,101370.0,0.35976266]
[1733956479233,0.10130845,101380.0,101370.0,0.35976266]
[1733956481458,0.10130845,101380.0,101370.0,0.50976266]
[1733956481873,0.001,101380.0,101370.0,0.50976266]
[1733956482735,0.001,101380.0,101370.0,0.58956266]
[1733956482999,0.001,101380.0,101370.0,0.65900061]
[1733956483520,0.003,101380.0,101370.0,0.65900061]
[1733956483869,0.003,101380.0,101370.0,0.65800061]
[1733956483870,0.002172,101380.0,101370.0,0.65800061]
[1733956484123,0.000172,101380.0,101370.0,0.65800061]
[1733956484645,0.008172,101380.0,101370.0,1.16358756]
[1733956485149,0.012172,101380.0,101370.0,1.16358756]
[1733956485380,0.012172,101380.0,101370.0,1.26389601]
[1733956485632,0.21428954,101410.0,101400.0,0.3461849]
[1733956485914,0.10030845,101410.0,101400.0,0.3461849]
[1733956486703,0.5394722,101420.0,101400.0,0.4447989]
[1733956486976,0.0001722,101420.0,101410.0,0.3461799]
[1733956487225,0.01059448,101420.0,101410.0,0.3461799]
[1733956487718,0.0001722,101420.0,101410.0,0.3461799]
[1733956488290,0.00822772,101420.0,101410.0,0.3471799]
[1733956489394,0.01122772,101420.0,101410.0,0.31215473]
[1733956503617,0.01122772,101420.0,101410.0,0.200304]
[1733956503618,0.23773617,101420.0,101410.0,0.200304]
[1733956503821,0.23773617,101420.0,101410.0,0.31215473]
[1733956504895,0.23773617,101420.0,101410.0,0.001]
[1733956504896,0.26073617,101420.0,101410.0,0.001]
[1733956505088,0.45793517,101420.0,101410.0,0.001]
[1733956505501,0.48722229,101420.0,101410.0,0.001]
[1733956505705,0.48722208,101420.0,101410.0,0.001]
[1733956505905,0.48722521,101420.0,101410.0,0.001]
[1733956506219,0.0777,101410.0,101400.0,0.199305]
[1733956506400,0.17800845,101410.0,101400.0,0.199305]
[1733956506610,0.71730845,101410.0,101400.0,0.199305]
[1733956507404,0.71730845,101410.0,101400.0,0.204305]
[1733956509320,0.71730845,101410.0,101400.0,0.27775523]
[1733956509724,0.74030845,101410.0,101400.0,0.28175523]
[1733956509954,0.74030845,101410.0,101400.0,0.159]
[1733956510795,0.74030845,101410.0,101400.0,0.23245023]
[1733956511910,0.74030845,101410.0,101400.0,0.08245023]
[1733956512268,0.74030845,101410.0,101400.0,0.23245023]
[1733956512474,0.74030845,101410.0,101400.0,0.159]
[1733956512671,0.78580845,101410.0,101400.0,0.159]
[1733956513035,0.98302745,101410.0,101400.0,0.159]
[1733956513664,0.78580845,101410.0,101400.0,0.159]
[1733956513885,0.79622203,101410.0,101400.0,0.159]
[1733956514048,0.79622203,101410.0,101400.0,0.009]
[1733956514049,0.99344103,101410.0,101400.0,0.009]
[1733956515053,0.52759126,101410.0,101400.0,0.009]
[1733956515267,0.567507,101400.0,101380.0,8.6e-05]
[1733956515484,0.41661615,101390.0,101380.0,8.6e-05]
[1733956515682,0.42761512,101390.0,101380.0,8.6e-05]
[1733956516086,0.48608339,101390.0,101380.0,8.6e-05]
[1733956516330,0.53158339,101390.0,101380.0,8.6e-05]
[1733956516512,0.57542977,101390.0,101380.0,8.6e-05]
[1733956516734,0.44376645,101390.0,101380.0,8.6e-05]
[1733956516894,0.44476645,101390.0,101380.0,0.006086]
[1733956517269,0.47311154,101390.0,101380.0,8.6e-05]
[1733956517474,0.56092423,101390.0,101380.0,8.6e-05]
[1733956517682,0.68157914,101390.0,101380.0,8.6e-05]
[1733956517887,0.81329818,101390.0,101380.0,8.6e-05]
[1733956518087,0.98892357,101390.0,101380.0,8.6e-05]
[1733956518493,0.98892357,101390.0,101380.0,0.002086]
[1733956518904,0.98892357,101390.0,101380.0,0.003086]
[1733956519317,1.13892357,101390.0,101380.0,0.003086]
[1733956520350,1.14926843,101390.0,101380.0,0.003086]
[1733956521360,1.14929066,101390.0,101380.0,0.003086]
[1733956523865,0.99929066,101390.0,101380.0,0.003086]
[1733956524070,1.21883475,101390.0,101380.0,0.003086]
[1733956528212,0.99929066,101390.0,101380.0,0.003086]
[1733956529840,1.13101712,101390.0,101380.0,0.003086]
[1733956530283,0.173,101380.0,101370.0,0.23121994]
[1733956530523,0.68760155,101380.0,101370.0,0.23121994]
[1733956530760,0.63998275,101380.0,101370.0,0.23121994]
[1733956531456,0.64317392,101380.0,101370.0,0.23121994]
[1733956531667,0.64317392,101380.0,101370.0,0.23521994]
[1733956531863,0.77490037,101380.0,101370.0,0.23521994]
[1733956532037,0.77590037,101380.0,101370.0,0.24121994]
[1733956532235,0.64417392,101380.0,101370.0,0.24121994]
[1733956533665,0.55637662,101380.0,101370.0,0.05054878]
[1733956534537,0.70637662,101380.0,101370.0,0.05054878]
[1733956534762,0.75237662,101380.0,101370.0,0.05054878]
[1733956535283,0.84012518,101380.0,101370.0,0.05054878]
[1733956537405,0.97174803,101380.0,101370.0,0.05054878]
[1733956542481,1.14724516,101380.0,101370.0,0.05054878]
[1733956543838,1.27886801,101380.0,101370.0,0.05054878]
[1733956544461,0.75237662,101380.0,101370.0,0.05054878]
[1733956544614,1.14762102,101380.0,101370.0,0.05054878]
[1733956545183,1.14762102,101380.0,101350.0,0.27294082]
[1733956545430,0.023,101360.0,101350.0,0.27294082]
[1733956545722,0.12658498,101360.0,101350.0,0.27294082]
[1733956546956,0.12858438,101360.0,101350.0,0.27294082]
[1733956547678,0.13258438,101360.0,101350.0,0.27294082]
[1733956548094,0.13958438,101360.0,101350.0,0.27294082]
[1733956548674,0.67888438,101360.0,101350.0,0.27294082]
[1733956551140,0.76680859,101360.0,101350.0,0.27294082]
[1733956552766,0.7772092,101360.0,101350.0,0.27294082]
[1733956554659,0.77734442,101360.0,101350.0,0.27294082]
[1733956555179,0.90943357,101360.0,101350.0,0.27294082]
[1733956555773,0.90943357,101360.0,101350.0,0.1994191]
[1733956556130,0.90943357,101360.0,101350.0,0.35234082]
[1733956556448,0.77734442,101360.0,101350.0,0.35234082]
[1733956557057,0.75434442,101360.0,101350.0,0.35234082]
[1733956557264,0.88643357,101360.0,101350.0,0.35234082]
[1733956557673,0.21504442,101360.0,101350.0,0.35234082]
[1733956557884,0.24450376,101360.0,101350.0,0.35234082]
[1733956558092,0.37659291,101360.0,101350.0,0.35234082]
[1733956559164,0.55271178,101360.0,101350.0,0.35234082]
[1733956559343,0.34713357,101360.0,101350.0,0.35234082]
[1733956559574,0.37660669,101360.0,101350.0,0.39994082]
[1733956560326,0.55272556,101360.0,101350.0,0.39994082]
[1733956560613,1.35816844,101360.0,101350.0,8.61e-05]
[1733956560756,1.54052899,101360.0,101350.0,8.61e-05]
[1733956560960,1.40843984,101360.0,101350.0,8.61e-05]
[1733956561161,1.18204958,101360.0,101350.0,8.61e-05]
[1733956561566,1.10674958,101360.0,101350.0,0.07360782]
[1733956561770,1.18204958,101360.0,101350.0,0.22360782]
[1733956562357,1.18204958,101360.0,101350.0,0.07360782]
[1733956565387,1.4474862,101360.0,101350.0,0.07360782]
[1733956566768,0.9081862,101360.0,101350.0,0.07360782]
[1733956569310,0.90824211,101360.0,101350.0,0.07360782]
[1733956570317,0.68746565,101360.0,101350.0,0.07360782]
[1733956570867,0.2539,101350.0,101340.0,8.61e-05]